[Event "MCR rapid mládeže 2023 U16"]
[Site "Harachov, Czech Republic"]
[Date "2023.09.10"]
[Round "7.24"]
[White "Nova, Anezka"]
[Black "Kratka, Tereza"]
[Result "0-1"]
[TimeControl "20min+5s/move"]
[WhiteElo "1382"]
[BlackElo "1147"]

1. e4 {[%clk 00:20:29]} c5 {[%clk 00:20:29]} {[%emt 00:00:02]} 2. Nf3 {[%clk
00:20:32]} {[%emt 00:00:01]} Nc6 {[%clk 00:20:33]} {[%emt 00:00:02]} 3. c3
{[%clk 00:20:36]} {[%emt 00:00:01]} g6 {[%clk 00:20:33]} {[%emt 00:00:05]} 4.
d4 {[%clk 00:20:39]} {[%emt 00:00:02]} cxd4 {[%clk 00:20:36]} {[%emt 00:00:02]}
5. cxd4 {[%clk 00:20:42]} {[%emt 00:00:01]} Bg7 {[%clk 00:20:30]} {[%emt
00:00:11]} 6. Nc3 {[%clk 00:20:30]} {[%emt 00:00:17]} Nf6 {[%clk 00:20:31]}
{[%emt 00:00:03]} 7. Be3 {[%clk 00:19:20]} {[%emt 00:01:16]} b6 {[%clk
00:20:25]} {[%emt 00:00:11]} 8. d5 {[%clk 00:18:19]} {[%emt 00:01:06]} Nb4
{[%clk 00:19:47]} {[%emt 00:00:44]} 9. a3 {[%clk 00:16:57]} {[%emt 00:01:27]}
Na6 {[%clk 00:19:50]} {[%emt 00:00:02]} 10. Bb5 {[%clk 00:16:32]} {[%emt
00:00:30]} Nc7 {[%clk 00:19:27]} {[%emt 00:00:28]} 11. Bc4 {[%clk 00:15:19]}
{[%emt 00:01:16]} O-O {[%clk 00:18:53]} {[%emt 00:00:40]} 12. O-O {[%clk
00:15:12]} {[%emt 00:00:13]} Bb7 {[%clk 00:18:54]} {[%emt 00:00:04]} 13. Rc1
{[%clk 00:14:29]} {[%emt 00:00:47]} d6 {[%clk 00:17:19]} {[%emt 00:01:40]} 14.
Qd3 {[%clk 00:12:13]} {[%emt 00:02:20]} Qd7 {[%clk 00:16:11]} {[%emt 00:01:15]}
15. Ne2 {[%clk 00:11:20]} {[%emt 00:00:58]} e6 {[%clk 00:12:25]} {[%emt
00:03:51]} 16. dxe6 {[%clk 00:09:49]} {[%emt 00:01:36]} Nxe6 {[%clk 00:12:16]}
{[%emt 00:00:14]} 17. Nd2 {[%clk 00:07:35]} {[%emt 00:02:18]} Ng4 {[%clk
00:11:10]} {[%emt 00:01:11]} 18. Bd4 {[%clk 00:06:01]} {[%emt 00:01:39]} Nxd4
{[%clk 00:10:47]} {[%emt 00:00:28]} 19. Nxd4 {[%clk 00:06:04]} {[%emt
00:00:02]} Nf6 {[%clk 00:09:23]} {[%emt 00:01:29]} 20. f3 {[%clk 00:05:20]}
{[%emt 00:00:49]} Qe7 {[%clk 00:08:17]} {[%emt 00:01:11]} 21. Rfe1 {[%clk
00:04:03]} {[%emt 00:01:20]} Nd7 {[%clk 00:07:46]} {[%emt 00:00:38]} 22. N2b3
{[%clk 00:03:20]} {[%emt 00:00:49]} Rfd8 {[%clk 00:07:32]} {[%emt 00:00:18]} 23.
Rc2 {[%clk 00:03:15]} {[%emt 00:00:10]} Nc5 {[%clk 00:07:10]} {[%emt 00:00:28]}
24. Qe2 {[%clk 00:02:50]} {[%emt 00:00:24]} Nxb3 {[%clk 00:06:54]} {[%emt
00:00:26]} 25. Nxb3 {[%clk 00:02:54]} {[%emt 00:00:02]} a6 {[%clk 00:06:30]}
{[%emt 00:00:29]} 26. Qf2 {[%clk 00:02:37]} {[%emt 00:00:21]} b5 {[%clk
00:06:16]} {[%emt 00:00:19]} 27. Bd5 {[%clk 00:02:35]} {[%emt 00:00:07]} Bxd5
{[%clk 00:05:59]} {[%emt 00:00:23]} 28. exd5 {[%clk 00:02:38]} {[%emt
00:00:01]} Qb7 {[%clk 00:05:46]} {[%emt 00:00:11]} 29. Rc6 {[%clk 00:02:04]}
{[%emt 00:00:47]} Rac8 {[%emt 00:00:23]} 30. Rec1 {[%emt 00:00:04]} Be5 {[%clk
00:04:26]} {[%emt 00:00:58]} 31. Qc2 {[%clk 00:01:43]} {[%emt 00:00:25]} Rxc6
{[%clk 00:04:18]} {[%emt 00:00:14]} 32. dxc6 {[%clk 00:01:24]} {[%emt
00:00:23]} Qb6+ {[%clk 00:04:21]} {[%emt 00:00:01]} 33. Kh1 {[%clk 00:01:20]}
{[%emt 00:00:10]} Bf4 {[%clk 00:03:58]} {[%emt 00:00:28]} 34. Rd1 {[%clk
00:01:06]} {[%emt 00:00:19]} Rc8 {[%clk 00:03:54]} {[%emt 00:00:09]} 35. Nd4
{[%clk 00:00:29]} {[%emt 00:00:43]} Be5 {[%clk 00:03:43]} {[%emt 00:00:15]} 36.
Qe4 {[%clk 00:00:19]} {[%emt 00:00:15]} Bxd4 {[%clk 00:03:29]} {[%emt
00:00:19]} 37. Qxd4 {[%clk 00:00:15]} {[%emt 00:00:10]} Qxd4 {[%clk 00:03:30]}
{[%emt 00:00:04]} 38. Rxd4 {[%clk 00:00:19]} {[%emt 00:00:01]} Rxc6 {[%clk
00:03:33]} {[%emt 00:00:01]} 39. Rd1 {[%clk 00:00:13]} {[%emt 00:00:11]} Rc2
{[%clk 00:03:20]} {[%emt 00:00:18]} 40. Kg1 {[%clk 00:00:08]} {[%emt 00:00:11]}
Rxb2 {[%clk 00:03:09]} {[%emt 00:00:16]} 41. Rxd6 {[%clk 00:00:11]} {[%emt
00:00:01]} Rb3 {[%clk 00:02:57]} {[%emt 00:00:17]} 42. Rxa6 {[%clk 00:00:14]}
{[%emt 00:00:03]} b4 {[%clk 00:02:39]} {[%emt 00:00:23]} 43. axb4 {[%clk
00:00:13]} {[%emt 00:00:06]} Rxb4 {[%clk 00:02:42]} {[%emt 00:00:01]} 44. Kf2
{[%clk 00:00:17]} {[%emt 00:00:01]} Rb2+ {[%clk 00:02:46]} {[%emt 00:00:02]} 45.
Kg3 {[%clk 00:00:21]} {[%emt 00:00:01]} Kg7 {[%clk 00:02:45]} {[%emt 00:00:06]}
46. Ra7 {[%clk 00:00:24]} {[%emt 00:00:01]} h5 {[%clk 00:02:15]} {[%emt
00:00:34]} 47. Rc7 {[%clk 00:00:21]} {[%emt 00:00:09]} h4+ {[%clk 00:01:52]}
{[%emt 00:00:28]} 0-1

[Event "MCR rapid mládeže 2023 U16"]
[Site "Harachov, Czech Republic"]
[Date "2023.09.10"]
[Round "7.25"]
[White "Jakubse, Tamae Severina"]
[Black "Janouskova, Eliska"]
[Result "1/2-1/2"]
[TimeControl "20min+5s/move"]
[WhiteElo "1223"]
[BlackElo "1333"]

1. e4 {[%clk 00:20:08]} {[%emt 00:00:02]} e5 {[%clk 00:20:08]} {[%emt
00:00:02]} 2. Nc3 {[%clk 00:20:10]} {[%emt 00:00:03]} Nc6 {[%clk 00:20:10]}
{[%emt 00:00:02]} 3. Bc4 {[%clk 00:20:12]} {[%emt 00:00:03]} Nf6 {[%clk
00:20:10]} {[%emt 00:00:05]} 4. d3 {[%clk 00:20:14]} {[%emt 00:00:03]} Bb4
{[%clk 00:20:10]} {[%emt 00:00:04]} 5. Bg5 {[%clk 00:19:29]} {[%emt 00:00:51]}
Na5 {[%clk 00:17:16]} {[%emt 00:03:00]} 6. Bb3 {[%clk 00:18:20]} {[%emt
00:01:14]} Nxb3 {[%clk 00:16:07]} {[%emt 00:01:14]} 7. axb3 {[%clk 00:18:21]}
{[%emt 00:00:03]} O-O {[%clk 00:14:45]} {[%emt 00:01:27]} 8. Nge2 {[%clk
00:17:03]} {[%emt 00:01:23]} Re8 {[%clk 00:13:57]} {[%emt 00:00:53]} 9. O-O
{[%clk 00:16:01]} {[%emt 00:01:07]} c6 {[%clk 00:13:18]} {[%emt 00:00:44]} 10.
Kh1 {[%clk 00:14:53]} {[%emt 00:01:13]} h6 {[%clk 00:11:19]} {[%emt 00:02:04]}
11. Bh4 {[%clk 00:14:01]} {[%emt 00:00:57]} Be7 {[%clk 00:10:02]} {[%emt
00:01:23]} 12. f4 {[%clk 00:12:48]} {[%emt 00:01:17]} Ng4 {[%clk 00:09:12]}
{[%emt 00:00:55]} 13. Bxe7 {[%clk 00:11:24]} {[%emt 00:01:30]} Rxe7 {[%clk
00:08:54]} {[%emt 00:00:23]} 14. Rf3 {[%clk 00:09:32]} {[%emt 00:01:56]} d5
{[%clk 00:07:38]} {[%emt 00:01:22]} 15. h3 {[%clk 00:08:15]} {[%emt 00:01:21]}
d4 {[%clk 00:05:37]} {[%emt 00:02:06]} 16. hxg4 {[%clk 00:06:46]} {[%emt
00:01:34]} dxc3 {[%clk 00:05:40]} {[%emt 00:00:02]} 17. f5 {[%clk 00:05:57]}
{[%emt 00:00:55]} cxb2 {[%clk 00:04:56]} {[%emt 00:00:48]} 18. Rb1 {[%clk
00:05:27]} {[%emt 00:00:36]} f6 {[%clk 00:04:49]} {[%emt 00:00:11]} 19. Rxb2
{[%clk 00:04:38]} {[%emt 00:00:54]} c5 {[%clk 00:03:42]} {[%emt 00:01:12]} 20.
Qe1 {[%clk 00:03:41]} {[%emt 00:01:02]} Qe8 {[%clk 00:03:18]} {[%emt 00:00:29]}
21. Qh4 {[%clk 00:03:28]} {[%emt 00:00:16]} b6 {[%clk 00:02:59]} {[%emt
00:00:27]} 22. Ng3 {[%clk 00:02:53]} {[%emt 00:00:40]} Qf7 {[%clk 00:02:41]}
{[%emt 00:00:23]} 23. Nh5 {[%clk 00:02:36]} {[%emt 00:00:22]} 1/2-1/2

[Event "MCR rapid mládeže 2023 U16"]
[Site "Harachov, Czech Republic"]
[Date "2023.09.10"]
[Round "7.26"]
[White "Barteckova, Nikol"]
[Black "Hujova, Tess"]
[Result "1-0"]
[TimeControl "20min+5s/move"]
[WhiteElo "1246"]
[BlackElo "1104"]

1. e4 {[%clk 00:20:08]} {[%emt 00:00:01]} e6 {[%clk 00:20:09]} {[%emt
00:00:02]} 2. d4 {[%clk 00:20:11]} {[%emt 00:00:01]} b6 {[%clk 00:20:12]}
{[%emt 00:00:03]} 3. Nc3 {[%clk 00:20:04]} {[%emt 00:00:12]} Bb7 {[%clk
00:20:13]} {[%emt 00:00:03]} 4. Nf3 {[%clk 00:19:27]} {[%emt 00:00:42]} Bb4
{[%clk 00:20:13]} {[%emt 00:00:06]} 5. Bd3 {[%clk 00:19:28]} {[%emt 00:00:04]}
Nf6 {[%clk 00:20:12]} {[%emt 00:00:05]} 6. Qe2 {[%clk 00:18:40]} {[%emt
00:00:53]} d6 {[%clk 00:20:09]} {[%emt 00:00:09]} 7. a3 {[%clk 00:18:43]}
{[%emt 00:00:02]} Bxc3+ {[%clk 00:20:10]} {[%emt 00:00:03]} 8. bxc3 {[%clk
00:18:47]} {[%emt 00:00:02]} Nbd7 {[%clk 00:20:11]} {[%emt 00:00:05]} 9. Bg5
{[%clk 00:18:34]} {[%emt 00:00:17]} O-O {[%clk 00:19:41]} {[%emt 00:00:35]} 10.
O-O {[%clk 00:18:13]} {[%emt 00:00:26]} c5 {[%clk 00:19:15]} {[%emt 00:00:31]}
11. Rfe1 {[%clk 00:16:28]} {[%emt 00:01:51]} Qc7 {[%clk 00:18:39]} {[%emt
00:00:40]} 12. Nd2 {[%clk 00:13:41]} {[%emt 00:02:51]} Rfe8 {[%clk 00:16:40]}
{[%emt 00:02:04]} 13. Qd1 {[%clk 00:11:02]} {[%emt 00:02:44]} Rac8 {[%emt
00:02:04]} 14. Bb5 {[%emt 00:01:38]} Rf8 {[%emt 00:00:52]} 15. Rc1 {[%emt
00:01:04]} a6 {[%emt 00:01:07]} 16. Bf1 {[%emt 00:02:20]} Qc6 {[%emt 00:00:15]}
17. f3 {[%emt 00:01:36]} cxd4 {[%clk 00:08:51]} {[%emt 00:00:02]} 18. cxd4
{[%clk 00:08:40]} {[%emt 00:00:03]} Qc3 {[%clk 00:08:46]} {[%emt 00:00:05]} 19.
Nb3 {[%clk 00:08:20]} {[%emt 00:00:29]} Qc7 {[%clk 00:07:50]} {[%emt 00:01:01]}
20. Bd3 {[%clk 00:07:54]} {[%emt 00:00:31]} e5 {[%clk 00:07:04]} {[%emt
00:00:51]} 21. c3 {[%clk 00:06:14]} {[%emt 00:01:45]} Qb8 {[%clk 00:06:09]}
{[%emt 00:01:01]} 22. Qe2 {[%clk 00:05:23]} {[%emt 00:00:56]} Qa7 {[%clk
00:05:54]} {[%emt 00:00:20]} 23. Nd2 {[%clk 00:04:23]} {[%emt 00:01:06]} b5
{[%clk 00:05:17]} {[%emt 00:00:41]} 24. Be3 {[%clk 00:03:46]} {[%emt 00:00:42]}
Rc7 {[%clk 00:04:44]} {[%emt 00:00:39]} 25. dxe5 {[%clk 00:03:37]} {[%emt
00:00:13]} Qa8 {[%clk 00:04:42]} {[%emt 00:00:07]} 26. exf6 {[%clk 00:03:40]}
{[%emt 00:00:01]} Nxf6 {[%emt 00:00:03]} 27. Bd4 {[%clk 00:03:16]} {[%emt
00:00:28]} Nd7 {[%clk 00:04:41]} {[%emt 00:00:09]} 28. Nb3 {[%clk 00:02:52]}
{[%emt 00:00:29]} Nc5 {[%clk 00:03:54]} {[%emt 00:00:51]} 29. Nxc5 {[%clk
00:02:32]} {[%emt 00:00:27]} dxc5 {[%clk 00:03:57]} {[%emt 00:00:02]} 30. Be3
{[%clk 00:01:41]} {[%emt 00:00:52]} c4 {[%clk 00:03:59]} {[%emt 00:00:07]} 31.
Bc2 {[%clk 00:01:41]} {[%emt 00:00:05]} Rc6 {[%clk 00:03:07]} {[%emt 00:00:56]}
32. Rcd1 {[%clk 00:01:42]} {[%emt 00:00:05]} Re6 {[%clk 00:02:48]} {[%emt
00:00:22]} 33. Qf2 {[%clk 00:01:37]} {[%emt 00:00:12]} Rfe8 {[%clk 00:02:28]}
{[%emt 00:00:23]} 34. Bd4 {[%clk 00:01:38]} {[%emt 00:00:05]} f6 {[%clk
00:02:21]} {[%emt 00:00:11]} 35. Re3 {[%clk 00:01:24]} {[%emt 00:00:19]} Qb8
{[%clk 00:02:04]} {[%emt 00:00:23]} 36. Rde1 {[%clk 00:01:17]} {[%emt
00:00:12]} g6 {[%clk 00:01:58]} {[%emt 00:00:10]} 37. Qg3 {[%clk 00:01:12]}
{[%emt 00:00:10]} Qd8 {[%clk 00:01:40]} {[%emt 00:00:24]} 38. Rd1 {[%clk
00:01:12]} {[%emt 00:00:05]} Qe7 {[%clk 00:01:40]} {[%emt 00:00:05]} 39. Ra1
{[%clk 00:01:07]} {[%emt 00:00:09]} Rf8 {[%clk 00:01:32]} {[%emt 00:00:13]} 40.
Qf2 {[%clk 00:01:03]} {[%emt 00:00:07]} Qf7 {[%clk 00:01:23]} {[%emt 00:00:17]}
41. Re2 {[%clk 00:00:55]} {[%emt 00:00:13]} Rfe8 {[%clk 00:01:17]} {[%emt
00:00:10]} 42. Rae1 {[%clk 00:00:52]} {[%emt 00:00:09]} Rd8 {[%clk 00:01:11]}
{[%emt 00:00:11]} 43. a4 {[%clk 00:00:44]} {[%emt 00:00:13]} Bc6 {[%clk
00:01:04]} {[%emt 00:00:11]} 44. Ra1 {[%clk 00:00:44]} {[%emt 00:00:05]} Rde8
{[%clk 00:00:52]} {[%emt 00:00:17]} 45. axb5 {[%clk 00:00:47]} {[%emt
00:00:03]} Bxb5 {[%clk 00:00:56]} {[%emt 00:00:01]} 46. Ba4 {[%clk 00:00:48]}
{[%emt 00:00:04]} Qd7 {[%clk 00:00:55]} {[%emt 00:00:05]} 47. Rea2 {[%clk
00:00:43]} {[%emt 00:00:10]} Ra8 {[%clk 00:00:53]} {[%emt 00:00:08]} 48. Bxb5
{[%clk 00:00:38]} {[%emt 00:00:11]} Qxb5 {[%clk 00:00:54]} {[%emt 00:00:03]} 49.
Rb2 {[%clk 00:00:37]} {[%emt 00:00:05]} Qe8 {[%clk 00:00:54]} {[%emt 00:00:04]}
50. Qe2 {[%clk 00:00:30]} {[%emt 00:00:13]} Rc6 {[%clk 00:00:55]} {[%emt
00:00:04]} 51. Rab1 {[%clk 00:00:30]} {[%emt 00:00:06]} Qc8 {[%clk 00:00:52]}
{[%emt 00:00:07]} 52. Rb6 {[%clk 00:00:30]} {[%emt 00:00:05]} Rxb6 {[%clk
00:00:53]} {[%emt 00:00:04]} 53. Rxb6 {[%clk 00:00:33]} {[%emt 00:00:02]} a5
{[%clk 00:00:49]} {[%emt 00:00:09]} 54. Rb5 {[%clk 00:00:30]} {[%emt 00:00:06]}
a4 {[%clk 00:00:52]} {[%emt 00:00:04]} 55. Rc5 {[%clk 00:00:31]} {[%emt
00:00:04]} Qd8 {[%clk 00:00:53]} {[%emt 00:00:03]} 56. Qxc4+ {[%clk 00:00:34]}
{[%emt 00:00:03]} Kg7 {[%clk 00:00:57]} {[%emt 00:00:29]} 57. Rc7+ {[%clk
00:01:33]} {[%emt 00:00:05]} Kh6 {[%clk 00:00:55]} {[%emt 00:00:06]} 58. Be3+
{[%clk 00:01:35]} {[%emt 00:00:04]} g5 {[%clk 00:00:43]} {[%emt 00:00:17]} 59.
Bd4 {[%clk 00:01:33]} {[%emt 00:00:07]} Kg6 {[%clk 00:00:37]} {[%emt 00:00:11]}
60. Qf7+ {[%clk 00:01:32]} {[%emt 00:00:04]} Kh6 {[%clk 00:00:36]} {[%emt
00:00:07]} 61. Qxh7# {[%clk 00:01:35]} {[%emt 00:00:03]} 1-0

[Event "MCR rapid mládeže 2023 U16"]
[Site "Harachov, Czech Republic"]
[Date "2023.09.10"]
[Round "7.27"]
[White "Lackova, Lucie"]
[Black "Mojzisova, Barbora"]
[Result "0-1"]
[TimeControl "20min+5s/move"]
[WhiteElo "1544"]
[BlackElo "1220"]

1. e4 {[%clk 00:20:05]} {[%emt 00:00:04]} e5 {[%clk 00:20:09]} {[%emt
00:00:01]} 2. Nf3 {[%clk 00:20:09]} {[%emt 00:00:01]} Nc6 {[%clk 00:20:13]}
{[%emt 00:00:01]} 3. d4 {[%clk 00:20:13]} exd4 {[%clk 00:20:17]} {[%emt
00:00:01]} 4. Nxd4 {[%clk 00:20:17]} {[%emt 00:00:01]} Bc5 {[%clk 00:20:19]}
{[%emt 00:00:03]} 5. Be3 {[%clk 00:20:21]} Qf6 {[%clk 00:20:20]} {[%emt
00:00:04]} 6. c3 {[%clk 00:20:25]} {[%emt 00:00:02]} Nge7 {[%clk 00:20:20]}
{[%emt 00:00:06]} 7. Bc4 {[%clk 00:20:28]} {[%emt 00:00:01]} O-O {[%clk
00:20:10]} {[%emt 00:00:15]} 8. O-O {[%clk 00:20:24]} {[%emt 00:00:09]} Bb6
{[%clk 00:19:49]} {[%emt 00:00:25]} 9. Kh1 {[%clk 00:19:28]} {[%emt 00:01:00]}
d6 {[%clk 00:19:12]} {[%emt 00:00:42]} 10. Nxc6 {[%clk 00:17:04]} {[%emt
00:02:30]} Nxc6 {[%clk 00:18:53]} {[%emt 00:00:23]} 11. Bxb6 {[%clk 00:16:24]}
{[%emt 00:00:45]} axb6 {[%clk 00:18:53]} {[%emt 00:00:05]} 12. Nd2 {[%clk
00:15:34]} {[%emt 00:00:55]} Ne5 {[%clk 00:17:54]} {[%emt 00:01:01]} 13. Be2
{[%clk 00:15:05]} {[%emt 00:00:38]} Be6 {[%clk 00:17:18]} {[%emt 00:00:31]} 14.
a3 {[%clk 00:14:58]} {[%emt 00:00:23]} Rfe8 {[%clk 00:15:32]} {[%emt 00:01:49]}
15. h3 {[%clk 00:12:29]} {[%emt 00:02:35]} Ng6 {[%clk 00:12:13]} {[%emt
00:03:18]} 16. Nf3 {[%clk 00:08:05]} {[%emt 00:04:34]} Nf4 {[%clk 00:10:42]}
{[%emt 00:01:33]} 17. Kh2 {[%clk 00:06:09]} {[%emt 00:02:05]} Rad8 {[%clk
00:08:05]} {[%emt 00:02:40]} 18. Qc1 {[%clk 00:01:43]} {[%emt 00:04:31]} Nxe2
{[%clk 00:07:50]} {[%emt 00:00:21]} 19. Qd2 {[%clk 00:01:09]} {[%emt 00:00:38]}
Qf4+ {[%clk 00:06:33]} {[%emt 00:01:20]} 20. Qxf4 {[%clk 00:01:12]} {[%emt
00:00:05]} Nxf4 {[%clk 00:06:36]} {[%emt 00:00:03]} 21. Rad1 {[%clk 00:00:52]}
{[%emt 00:00:24]} Bc4 {[%clk 00:05:24]} {[%emt 00:01:04]} 22. Rg1 {[%clk
00:00:24]} {[%emt 00:00:45]} Be2 {[%clk 00:04:58]} {[%emt 00:00:28]} 23. Rd2
{[%clk 00:00:13]} {[%emt 00:00:21]} Bxf3 {[%clk 00:03:48]} {[%emt 00:01:15]} 24.
gxf3 {[%clk 00:00:15]} {[%emt 00:00:04]} c6 {[%clk 00:03:18]} {[%emt 00:00:35]}
25. Rg4 {[%clk 00:00:00]} {[%emt 00:00:15]} 0-1

[Event "MCR rapid mládeže 2023 U16"]
[Site "Harachov, Czech Republic"]
[Date "2023.09.10"]
[Round "7.28"]
[White "Stepankova, Linda"]
[Black "Kadlecova, Alena"]
[Result "1-0"]
[TimeControl "20min+5s/move"]
[WhiteElo "1124"]
[BlackElo "1020"]

1. e4 {[%clk 00:20:05]} {[%emt 00:00:04]} e5 {[%clk 00:20:09]} {[%emt
00:00:02]} 2. Nf3 {[%clk 00:20:09]} {[%emt 00:00:02]} Nf6 {[%clk 00:20:12]}
{[%emt 00:00:02]} 3. Nxe5 {[%clk 00:19:34]} {[%emt 00:00:39]} Qe7 {[%clk
00:20:15]} {[%emt 00:00:01]} 4. Nf3 {[%clk 00:19:09]} {[%emt 00:00:30]} Nxe4
{[%clk 00:20:17]} {[%emt 00:00:04]} 5. Qe2 {[%clk 00:18:18]} {[%emt 00:00:56]}
Nf6 {[%clk 00:20:14]} {[%emt 00:00:08]} 6. Nc3 {[%clk 00:17:59]} {[%emt
00:00:24]} Nc6 {[%clk 00:20:07]} {[%emt 00:00:12]} 7. d4 {[%clk 00:16:11]}
{[%emt 00:01:54]} h6 {[%clk 00:19:34]} {[%emt 00:00:37]} 8. Bf4 {[%clk
00:13:42]} {[%emt 00:02:34]} d6 {[%clk 00:19:15]} {[%emt 00:00:23]} 9. Qxe7+
{[%clk 00:13:36]} {[%emt 00:00:12]} Bxe7 {[%clk 00:19:17]} {[%emt 00:00:03]} 10.
Bb5 {[%clk 00:13:34]} {[%emt 00:00:07]} O-O {[%clk 00:18:54]} {[%emt 00:00:27]}
11. O-O-O {[%clk 00:12:42]} {[%emt 00:00:58]} a6 {[%clk 00:18:38]} {[%emt
00:00:22]} 12. Bd3 {[%clk 00:10:02]} {[%emt 00:02:45]} b5 {[%clk 00:16:31]}
{[%emt 00:02:09]} 13. a3 {[%clk 00:08:46]} {[%emt 00:01:24]} Rb8 {[%clk
00:15:57]} {[%emt 00:00:33]} 14. d5 {[%clk 00:07:34]} {[%emt 00:01:22]} Nd8
{[%clk 00:15:13]} {[%emt 00:00:46]} 15. Rhe1 {[%clk 00:06:42]} {[%emt
00:01:00]} Re8 {[%clk 00:15:00]} {[%emt 00:00:17]} 16. h3 {[%clk 00:05:37]}
{[%emt 00:01:11]} Bd7 {[%clk 00:14:36]} {[%emt 00:00:29]} 17. Nd4 {[%clk
00:03:48]} {[%emt 00:01:55]} Nb7 {[%clk 00:11:09]} {[%emt 00:03:30]} 18. Bf5
{[%clk 00:02:58]} {[%emt 00:00:55]} Bc8 {[%clk 00:09:44]} {[%emt 00:01:26]} 19.
Bxc8 {[%clk 00:02:51]} {[%emt 00:00:17]} Rbxc8 {[%clk 00:09:40]} {[%emt
00:00:08]} 20. Nc6 {[%clk 00:02:14]} {[%emt 00:00:44]} Bf8 {[%clk 00:08:05]}
{[%emt 00:01:37]} 21. Kd2 {[%clk 00:01:34]} {[%emt 00:00:48]} Nc5 {[%clk
00:07:06]} {[%emt 00:01:02]} 22. f3 {[%clk 00:01:28]} {[%emt 00:00:12]} Nfd7
{[%clk 00:03:41]} {[%emt 00:03:30]} 23. Rxe8 {[%clk 00:00:37]} {[%emt
00:00:57]} Rxe8 {[%clk 00:03:33]} {[%emt 00:00:12]} 24. Re1 {[%clk 00:00:39]}
{[%emt 00:00:03]} Rxe1 {[%clk 00:03:30]} {[%emt 00:00:08]} 25. Kxe1 {[%clk
00:00:42]} {[%emt 00:00:01]} g5 {[%clk 00:03:26]} {[%emt 00:00:09]} 26. Bg3
{[%clk 00:00:35]} {[%emt 00:00:12]} Bg7 {[%clk 00:03:15]} {[%emt 00:00:18]} 27.
Kd2 {[%clk 00:00:30]} {[%emt 00:00:10]} Bxc3+ {[%clk 00:03:12]} {[%emt
00:00:07]} 28. Kxc3 {[%clk 00:00:32]} {[%emt 00:00:02]} Na4+ {[%clk 00:03:12]}
{[%emt 00:00:05]} 29. Kb3 {[%clk 00:00:27]} {[%emt 00:00:11]} Nac5+ {[%clk
00:03:13]} {[%emt 00:00:03]} 30. Ka2 {[%clk 00:00:20]} {[%emt 00:00:13]} Kg7
{[%clk 00:02:44]} {[%emt 00:00:33]} 31. b3 {[%clk 00:00:21]} {[%emt 00:00:06]}
f5 {[%clk 00:02:31]} {[%emt 00:00:18]} 32. Kb2 {[%clk 00:00:22]} {[%emt
00:00:04]} f4 {[%clk 00:02:33]} {[%emt 00:00:02]} 33. Bf2 {[%clk 00:00:24]}
{[%emt 00:00:03]} Kf6 {[%clk 00:02:25]} {[%emt 00:00:13]} 34. Bd4+ {[%clk
00:00:20]} {[%emt 00:00:09]} Kg6 {[%clk 00:01:47]} {[%emt 00:00:42]} 35. Kc3
{[%clk 00:00:23]} {[%emt 00:00:02]} Nb6 {[%clk 00:01:38]} {[%emt 00:00:14]} 36.
Bxc5 {[%clk 00:00:15]} {[%emt 00:00:14]} dxc5 {[%clk 00:01:41]} {[%emt
00:00:01]} 37. Nb8 {[%clk 00:00:12]} {[%emt 00:00:09]} Nxd5+ {[%clk 00:01:38]}
{[%emt 00:00:08]} 38. Kd3 {[%clk 00:00:15]} {[%emt 00:00:02]} a5 {[%clk
00:01:22]} {[%emt 00:00:21]} 39. Nc6 {[%clk 00:00:14]} {[%emt 00:00:07]} Nb6
{[%clk 00:00:59]} {[%emt 00:00:26]} 40. Nxa5 {[%clk 00:00:14]} {[%emt
00:00:06]} Kf5 {[%clk 00:00:35]} {[%emt 00:00:27]} 41. c4 {[%clk 00:00:15]}
{[%emt 00:00:06]} bxc4+ {[%clk 00:00:31]} {[%emt 00:00:09]} 42. bxc4 {[%clk
00:00:17]} {[%emt 00:00:03]} Ke5 {[%clk 00:00:34]} {[%emt 00:00:02]} 43. Nc6+
{[%clk 00:00:18]} {[%emt 00:00:05]} Kd6 {[%clk 00:00:31]} {[%emt 00:00:07]} 44.
Na5 {[%clk 00:00:16]} {[%emt 00:00:08]} Ke5 {[%emt 00:00:45]} 1-0